Workbook

Sheet Лист1
B1: 2. План учебного процесса
A2: Индекс | B2: Наименование циклов, дисциплин, профессиональных модулей, МДК, практик | C2: Формы промежуточной аттестации | F2: Объем образовательной нагрузки | G2: В том числе практической подготовки | H2: Учебная нагрузка обучающихся (час) | P2: Распределение учебной нагрузкии по курсам и семестрам (час. в семестр)
C3: Зачеты | D3: Дифференцированные зачеты | E3: Экзамены | H3: Самостоятельная учебная нагрузка | I3: Во взаимодействии с преподавателем | P3: I курс | R3: II курс | T3: III курс
I4: Нагрузка на дисциплины и МДК | M4: По практике производственной и учебной | N4: Консультации | O4: Промежуточная аттестация | P4: 1 сем. 17 нед. | Q4: 2 сем. 24 нед. | R4: 3 сем. 17 нед. | S4: 4 сем. 25 нед. | T4: 5 сем. 17 нед. | U4: 6 сем. 24 нед.
I5: Всего учебных занятий | J5: в т.ч. по учебным дисциплинам и МДК
J6: Теоретическое обучение | K6: Лаб. и практ. занятий | L6: Курсовых работ (проектов)
A7: 1 | B7: 2 | C7: 3 | D7: 4 | E7: 5 | F7: 6 | G7: 7 | H7: 8 | I7: 9 | J7: 10 | K7: 11 | L7: 12 | M7: 13 | N7: 14 | O7: 15 | P7: 16 | Q7: 17 | R7: 18 | S7: 19 | T7: 20 | U7: 21
A8: О.00 | B8: Общеобразовательный цикл | C8: 0 | D8: 10 | E8: 3 | F8: =SUM(F9:F24) -> 1476 | G8: 0 | H8: 0 | I8: 1476 | J8: 604 | K8: 800 | L8: =SUM(L9:L24) -> 0 | M8: 0 | N8: =SUM(N9:N24) -> 54 | O8: 18 | P8: 310 | Q8: 497 | R8: 247 | S8: 422 | T8: 0 | U8: 0
A9: ООД.01 | B9: Русский язык | E9: 2 | F9: =SUM(H9:I9) -> 96 | H9: 0 | I9: =SUM(J9:O9) -> 96 | J9: 38 | K9: 40 | N9: 12 | O9: 6 | P9: 51 | Q9: 45
A10: ООД.02 | B10: Литература | D10: 4 | F10: =SUM(H10:I10) -> 117 | H10: 0 | I10: =SUM(J10:O10) -> 117 | J10: 40 | K10: 77 | R10: 34 | S10: 83
A11: ООД.03 | B11: Математика | E11: 4 | F11: =SUM(H11:I11) -> 252 | H11: 0 | I11: =SUM(J11:O11) -> 252 | J11: 117 | K11: 117 | N11: 12 | O11: 6 | P11: 83 | Q11: 40 | R11: 68 | S11: 61
A12: ООД.04 | B12: Иностранный язык | D12: 4 | F12: =SUM(H12:I12) -> 117 | H12: 0 | I12: =SUM(J12:O12) -> 117 | J12: 0 | K12: 117 | R12: 29 | S12: 88
A13: ООД.05 | B13: Информатика | D13: 2 | F13: =SUM(H13:I13) -> 118 | H13: 0 | I13: =SUM(J13:O13) -> 118 | J13: 26 | K13: 74 | N13: 18 | P13: 34 | Q13: 84
A14: ООД.01
A15: ООД.01
A16: ООД.06 | B16: Физика | E16: 4 | F16: =SUM(H16:I16) -> 138 | H16: 0 | I16: =SUM(J16:O16) -> 138 | J16: 52 | K16: 68 | N16: 12 | O16: 6 | R16: 84 | S16: 54
A17: ООД.07 | B17: Химия | D17: 2 | F17: 78 | H17: 0 | I17: 78 | J17: 50 | K17: 28 | P17: 19 | Q17: 59
A18: ООД.08 | B18: Биология | D18: 1 | F18: 36 | H18: 0 | I18: 36 | J18: 24 | K18: 12 | P18: 36
A19: ООД.09 | B19: История | D19: 2 | F19: 117 | H19: 0 | I19: 117 | J19: 65 | K19: 52 | P19: 34 | Q19: 83
A20: ООД.10 | B20: Обществознание | D20: 4 | F20: 108 | H20: 0 | I20: 108 | J20: 85 | K20: 23 | R20: 32 | S20: 76
A21: ООД.11 | B21: География | D21: 2 | F21: 36 | H21: 0 | I21: 36 | J21: 24 | K21: 12 | Q21: 36
A22: ООД.12 | B22: Физическая культура | D22: 1,2,4 | F22: 117 | H22: 0 | I22: 117 | J22: 7 | K22: 110 | P22: 17 | Q22: 40 | S22: 60
A23: ООД.13 | B23: Основы безопасности жизнедеятельности | D23: 2 | F23: 70 | H23: 0 | I23: 70 | J23: 38 | K23: 32 | P23: 36 | Q23: 34
A24: ООД.14 | B24: Родной язык | D24: 2 | F24: 76 | H24: 0 | I24: 76 | J24: 38 | K24: 38 | Q24: 76
A25: СГ.00 | B25: Социально - гуманитарный цикл | C25: 1 | D25: 2 | E25: 0 | F25: =SUM(F26:F29) -> 244 | G25: 170 | H25: 4 | I25: 240 | J25: 62 | K25: 178 | L25: 0 | M25: 0 | N25: 0 | O25: 0 | P25: 0 | Q25: 0 | R25: 0 | S25: 32 | T25: 104 | U25: 108
A26: СГ.01 | B26: История России | C26: 4 | F26: =SUM(H26:I26) -> 32 | H26: 4 | I26: =SUM(J26:O26) -> 28 | J26: 14 | K26: 14 | S26: 32
A27: СГ.02 | B27: Иностранный язык в профессиональной деятельности | D27: 6 | F27: =SUM(H27:I27) -> 72 | G27: 72 | I27: 72 | J27: 0 | K27: 72 | T27: 52 | U27: 20
A28: СГ.03 | B28: Физическая культура | D28: 5.6 | F28: 72 | G28: 70 | I28: 72 | J28: 2 | K28: 70 | T28: 52 | U28: 20
A29: СГ.04 | B29: Безопасность жизнедеятельности | D29: 6 | F29: =SUM(H29:I29) -> 68 | G29: 28 | I29: =SUM(J29:O29) -> 68 | J29: 46 | K29: 22 | U29: 68
A30: ОП.00 | B30: Общепрофессиональный цикл | C30: 2 | D30: 8 | E30: 1 | F30: =SUM(F31:F43) -> 542 | G30: 292 | H30: 8 | I30: 534 | J30: 258 | K30: 270 | L30: 0 | M30: 0 | N30: 0 | O30: 6 | P30: 132 | Q30: 94 | R30: 0 | S30: 170 | T30: 80 | U30: 66
A31: ОП.01 | B31: Математические методы решения прикладных задач | D31: 4 | F31: 36 | G31: 20 | I31: =SUM(J31:O31) -> 36 | J31: 16 | K31: 20 | S31: 36
A32: ОП.02 | B32: Экологические основы природопользования | C32: 4 | F32: 32 | G32: 22 | I32: 32 | J32: 10 | K32: 22 | S32: 32
A33: ОП.03 | B33: Инженерная графика | D33: 2 | F33: 58 | G33: 48 | H33: 8 | I33: 50 | J33: 2 | K33: 48 | P33: 34 | Q33: 24
A34: ОП.04 | B34: Техническая механика | E34: 2 | F34: 64 | G34: 26 | I34: 64 | J34: 32 | K34: 26 | O34: 6 | P34: 34 | Q34: 30
A35: ОП.05 | B35: Материаловедение | D35: 4 | F35: 70 | G35: 44 | I35: 70 | J35: 26 | K35: 44 | S35: 70
A36: ОП.06 | B36: Электротехника и электроника | D36: 2 | F36: 40 | G36: 14 | I36: 40 | J36: 26 | K36: 14 | Q36: 40
A37: ОП.07 | B37: Основы гидравлики и теплотехники | D37: 4 | F37: 32 | G37: 16 | I37: 32 | J37: 16 | K37: 16 | S37: 32
A38: ОП.08 | B38: Основы агрономии | D38: 1 | F38: 32 | G38: 14 | I38: 32 | J38: 18 | K38: 14 | P38: 32
A39: ОП.09 | B39: Основы зоотехнии | F39: 32 | G39: 18 | I39: 32 | J39: 14 | K39: 18 | P39: 32
A40: ОП.10 | B40: Информационные технологии в профессиональной деятельности | C40: 5 | F40: 32 | G40: 16 | I40: 32 | J40: 16 | K40: 16 | T40: 32
A41: ОП.11 | B41: Основы взаимозаменяемости и технические измерения | C41: 6 | F41: 32 | G41: 12 | I41: 32 | J41: 20 | K41: 12 | U41: 32
A42: ОП.12 | B42: Основы экономики, менеджмента и маркетинга | D42: 6 | F42: 34 | G42: 10 | I42: 34 | J42: 24 | K42: 10 | U42: 34
A43: ОП.13 | B43: Правовые основы профессиональной деятельности и охраны труда | D43: 5 | F43: =SUM(H43:I43) -> 48 | G43: 32 | I43: =SUM(J43:O43) -> 48 | J43: 38 | K43: 10 | T43: 48
A44: П.00 | B44: Профессиональный цикл | C44: =SUM(C45+C53+C59+C63+C67) -> 0 | D44: 6 | E44: 9 | F44: =SUM(F45+F53+F59+F63+F67) -> 1986 | G44: 1410 | H44: 6 | I44: 1980 | J44: 510 | K44: 484 | L44: 20 | M44: 900 | N44: 0 | O44: 66 | P44: 170 | Q44: 273 | R44: 365 | S44: 276 | T44: 428 | U44: 474
A45: ПМ.01 | B45: Эксплуатация сельскохозяйственной техники и оборудования | C45: 0 | D45: 2 | E45: 3 | F45: =SUM(F46:F52) -> 913 | G45: 639 | H45: 0 | I45: 913 | J45: 250 | K45: 315 | L45: 0 | M45: 324 | N45: 0 | O45: 24 | P45: 170 | Q45: 273 | R45: 365 | S45: 93 | T45: 12 | U45: 0
A46: МДК.01.01 | B46: Назначение, устройство, принцип работы и регулировки тракторов и автомобилей | E46: 4 | F46: =SUM(H46:I46) -> 225 | G46: 115 | I46: =SUM(J46:O46) -> 225 | J46: 104 | K46: 115 | O46: 6 | P46: 68 | Q46: 50 | R46: 86 | S46: 21
A47: МДК.01.02 | B47: Назначение, устройство, принцип работы и регулировки сельскохозяйственных машин и оборудования | E47: 3 | F47: 208 | G47: 120 | I47: 208 | J47: 82 | K47: 120 | O47: 6 | P47: 68 | Q47: 50 | R47: 90
A48: МДК.01.03 | B48: Комплектование и подготовка к работе машинно-тракторных агрегатов для выполнения сельскохозяйственных работ | F48: 108 | G48: 60 | I48: 108 | J48: 48 | K48: 60 | P48: 34 | Q48: 29 | R48: 45
A49: МДК.01.04 | B49: Устройство, принцип работы и обслуживание оборудовании животноводческих ферм и комплексов | D49: 3 | F49: 36 | G49: 20 | I49: 36 | J49: 16 | K49: 20 | R49: 36
A50: УП.01 | B50: Учебная практика | D50: 4 | F50: 252 | G50: 252 | I50: 252 | M50: 252 | Q50: 144 | R50: 108
A51: ПП.01 | B51: Производственная практика | F51: 72 | G51: 72 | I51: 72 | M51: 72 | S51: 72
A52: ПА | B52: Экзамен по модулю | E52: 5 | F52: 12 | I52: 12 | O52: 12 | T52: 12
A53: ПМ.02 | B53: Ремонт сельскохозяйственной техники и оборудования | C53: 0 | D53: 1 | E53: 2 | F53: =SUM(F54:F58) -> 548 | G53: 444 | H53: 6 | I53: 542 | J53: 86 | K53: 64 | L53: 20 | M53: 360 | N53: 0 | O53: 12 | P53: 0 | Q53: 0 | R53: 0 | S53: 120 | T53: 167 | U53: 261
A54: МДК.02.01 | B54: Система технического обслуживания и ремонта сельскохозяйственной техники и оборудования | E54: 6 | F54: 100 | G54: 56 | H54: 6 | I54: =SUM(J54:O54) -> 94 | J54: 38 | K54: 36 | L54: 20 | S54: 48 | T54: 52
A55: МДК.02.03 | B55: Технологические процессы ремонтного производства | F55: 76 | G55: 28 | I55: =SUM(J55:O55) -> 76 | J55: 48 | K55: 28 | T55: 43 | U55: 33
A56: УП.02 | B56: Учебная практика | D56: 6 | F56: 216 | G56: 216 | I56: =SUM(J56:O56) -> 216 | M56: 216 | S56: 72 | T56: 72 | U56: 72
A57: ПП.02 | B57: Производственная практика | F57: 144 | G57: 144 | I57: 144 | M57: 144 | U57: 144
A58: ПА | B58: Экзамен по модулю | E58: 6 | F58: 12 | I58: 12 | O58: 12 | U58: 12
A59: ПМ.03 | B59: Эксплуатация тракторов, комбайнов и сельскохозяйственных машин в условиях сельскохозяйственного производства | C59: 0 | D59: 1 | E59: 1 | F59: =SUM(F60:F62) -> 204 | G59: 174 | H59: 0 | I59: 204 | J59: 18 | K59: 30 | L59: 0 | M59: 144 | N59: 0 | O59: 12 | P59: 0 | Q59: 0 | R59: 0 | S59: 63 | T59: 141 | U59: 0
A60: МДК.03.01 | B60: Освоение профессии рабочего 19205 Тракторист-машинист сельскохозяйственного производства (категории "В", "С", "D", "Е", "F") | D60: 5 | F60: 48 | G60: 30 | I60: =SUM(J60:O60) -> 48 | J60: 18 | K60: 30 | S60: 27 | T60: 21
A61: ПП.03 | B61: Производственная практика | F61: 144 | G61: 144 | I61: =SUM(J61:O61) -> 144 | M61: 144 | S61: 36 | T61: 108
A62: ПА | B62: Квалификаицонный экзамен по модулю | E62: 5 | F62: 12 | I62: =SUM(J62:O62) -> 12 | O62: 12 | T62: 12
A63: ПМ.04 | B63: Освоение профессии рабочего Водитель автомобиля категории "В"и "С" | C63: 0 | D63: 1 | E63: 2 | F63: =SUM(F64:F66) -> 216 | G63: =SUM(G64:G66) -> 77 | H63: 0 | I63: 216 | J63: 127 | K63: 41 | L63: 0 | M63: 36 | N63: 0 | O63: 12 | P63: 0 | Q63: 0 | R63: 0 | S63: 0 | T63: 108 | U63: 108
A64: МДК.04.01 | B64: Теоретическая подготовка водителей автомобиля категории "В"и "С" | E64: 6 | F64: 174 | G64: 41 | I64: =SUM(J64:O64) -> 174 | J64: 127 | K64: 41 | O64: 6 | T64: 108 | U64: 66
A65: ПП.04 | B65: Производственная практика | D65: 6 | F65: 36 | G65: 36 | I65: 36 | M65: 36 | U65: 36
A66: ПА | B66: Квалификаицонный экзамен по модулю | E66: 6 | F66: 6 | I66: 6 | O66: 6 | U66: 6
A67: ПМ.05 | B67: Цифровые технологии в агропромышленном комплексе | C67: 0 | D67: 1 | E67: 1 | F67: =SUM(F68:F70) -> 105 | G67: 76 | H67: 0 | I67: 105 | J67: 29 | K67: 34 | L67: 0 | M67: 36 | N67: 0 | O67: 6 | P67: 0 | Q67: 0 | R67: 0 | S67: 0 | T67: 0 | U67: 105
A68: МДК.05.01 | B68: Использование технологии цифрового земледелия | D68: 6 | F68: 63 | G68: 40 | I68: 63 | J68: 29 | K68: 34 | U68: 63
A69: УП.05 | B69: Учебная практика | F69: 36 | G69: 36 | I69: 36 | M69: 36 | U69: 36
A70: ПА | B70: Промежуточная аттестация | E70: 6 | F70: 6 | I70: 6 | O70: 6 | U70: 6
A71: ПДП | B71: Преддипломная практика | F71: =SUM(H71:I71) -> 72 | G71: 72 | I71: =SUM(J71:M71) -> 72 | M71: 72 | U71: 72
B72: Государственная итоговая аттестация | F72: =SUM(H72:I72) -> 144 | I72: 144 | U72: 144
A73: Всего | C73: =C8+C25+C30+C44+C71+C72 -> 3 | D73: 26 | E73: 13 | F73: =F8+F25+F30+F44+F71+F72 -> 4464 | G73: 1944 | H73: 18 | I73: 4446 | J73: 1434 | K73: 1732 | L73: 20 | M73: 972 | N73: 54 | O73: 90 | P73: 612 | Q73: 864 | R73: 612 | S73: 900 | T73: 612 | U73: 864
H74: Всего | I74: дисциплин и МДК
A75: Государственная (итоговая) аттестация
A76: 1.Программа обучения по специальности | I76: учебной практики | Q76: 144 | R76: 108 | S76: 72 | T76: 72 | U76: 108
A77: 1.1 Демонстрационный экзамен: с 19.05.2026 г. по 14.06.2026 г.
A78: 1.2 Защита диплоного проекта(работы): с 15.06.2026 г. по 29.06.2026 г. | I78: производств. Пракитки | S78: 108 | T78: 108 | U78: 180
I80: преддипломн. практики | U80: 72
I82: экзаменов | Q82: 2 | R82: 1 | S82: 3 | T82: 2 | U82: 5
I84: зачетов | P84: 2 | Q84: 8 | R84: 1 | S84: 9 | T84: 3 | U84: 7
A86: ________________________________________________

Sheet Лист2

Sheet Лист3
